fUST/lending_fUST_20250505
["ID","MTS","AMOUNT","RATE_DAILY","PERIOD"]
[359922681,1746426641881,-323.65,0.0003589,14]
[359922682,1746426641891,-449.92,0.0003589,14]
[359922683,1746426641901,-400.0,0.0003589,14]
[359922684,1746426641911,-400.0,0.0003589,14]
[359922685,1746426641921,-400.0,0.0003589,14]
[359922686,1746426641930,-400.0,0.0003589,2]
[359922687,1746426641940,-400.0,0.0003589,14]
[359922688,1746426641950,-400.0,0.0003589,14]
[359922689,1746426641959,-400.0,0.0003589,14]
[359922690,1746426641970,-400.0,0.0003589,14]
[359922691,1746426641979,-160.68,0.0003589,14]
[359922692,1746426641989,-400.0,0.0003589,14]
[359922693,1746426641998,-400.0,0.0003589,14]
[359922694,1746426642008,-400.0,0.0003589,14]
[359922695,1746426642018,-752.89,0.0003589,14]
[359922696,1746426642028,-400.0,0.0003589,14]
[359922697,1746426642038,-400.0,0.0003589,14]
[359922698,1746426642047,-400.0,0.0003589,14]
[359922699,1746426642057,-400.0,0.0003589,14]
[359922700,1746426642067,-588.08,0.0003589,14]
[359922701,1746426642077,-400.0,0.0003589,14]
[359922702,1746426642087,-400.0,0.0003589,14]
[359922703,1746426642097,-400.0,0.0003589,14]
[359922704,1746426642106,-400.0,0.0003589,14]
[359922705,1746426642115,-400.0,0.0003589,14]
[359922706,1746426642124,-400.0,0.0003589,14]
[359922707,1746426642134,-400.0,0.0003589,14]
[359922708,1746426642143,-400.0,0.0003589,14]
[359922709,1746426642153,-400.0,0.0003589,14]
[359922710,1746426642162,-400.0,0.0003589,14]
[359922711,1746426642172,-400.0,0.0003589,14]
[359922712,1746426642182,-402.02,0.0003589,14]
[359922713,1746426642190,-400.0,0.0003589,14]
[359922714,1746426642200,-400.0,0.0003589,14]
[359922715,1746426642210,-400.0,0.0003589,14]
[359922716,1746426642219,-1000.0,0.0003589,2]
[359922717,1746426642229,-211.22623058,0.000359,33]
[359922718,1746426642239,-500.0,0.00036027,14]
[359922719,1746426642248,-151.0,0.00036027,14]
[359922720,1746426642258,-160.42348852,0.00036027,14]
[359922721,1746426642267,-500.0,0.00036054,14]
[359922722,1746426642277,-151.0,0.00036054,14]
[359922723,1746426642287,-500.0,0.00036082,14]
[359922724,1746426642298,-198.0,0.00036082,14]
[359922725,1746426642308,-500.0,0.00036109,14]
[359922726,1746426642318,-500.0,0.00036137,14]
[359922727,1746426642328,-257.99815393,0.00036154,3]
[359922728,1746426642338,-500.0,0.00036164,14]
[359922729,1746426642347,-400.0,0.00036164,14]
[359922730,1746426642357,-200.0,0.00036164,14]
[359922731,1746426642366,-175.6,0.00036164,14]
[359922732,1746426642376,-296.78,0.00036164,14]
[359922733,1746426642386,-520.0,0.00036164,14]
[359922734,1746426642395,-400.0,0.00036164,14]
[359922735,1746426642405,-488.49,0.00036164,14]
[359922736,1746426642415,-398.00054238,0.00036164,14]
[359922737,1746426642424,-400.0,0.00036164,14]
[359922738,1746426642434,-400.0,0.00036164,14]
[359922739,1746426642444,-400.0,0.00036164,14]
[359922740,1746426642454,-400.0,0.00036164,14]
[359922741,1746426642464,-372.47651673,0.00036164,14]
[359922742,1746426642473,-400.0,0.00036164,14]
[359922743,1746426642483,-280.25,0.00036164,14]
[359922744,1746426642492,-400.0,0.00036164,14]
[359922745,1746426642503,-400.0,0.00036164,14]
[359922746,1746426642514,-400.0,0.00036164,14]
[359922747,1746426642524,-209.93,0.00036164,14]
[359922748,1746426642534,-400.0,0.00036164,14]
[359922749,1746426642544,-400.0,0.00036164,14]
[359922750,1746426642554,-400.0,0.00036164,14]
[359922751,1746426642564,-400.0,0.00036164,14]
[359922752,1746426642573,-400.0,0.00036164,14]
[359922753,1746426642583,-400.0,0.00036164,14]
[359922754,1746426642593,-348.92399143,0.00036164,14]
[359922755,1746426642603,-172.45,0.00036164,14]
[359922756,1746426642613,-400.0,0.00036164,14]
[359922757,1746426642622,-400.0,0.00036164,14]
[359922758,1746426642632,-400.0,0.00036164,14]
[359922759,1746426642641,-400.0,0.00036164,14]
[359922760,1746426642651,-362.86,0.00036164,14]
[359922761,1746426642661,-400.0,0.00036164,14]
[359922762,1746426642671,-400.0,0.00036164,14]
[359922763,1746426642692,-600.69,0.00036164,14]
[359922764,1746426642702,-400.0,0.00036164,14]
[359922765,1746426642712,-400.0,0.00036164,14]
[359922766,1746426642722,-879.3,0.00036164,14]
[359922767,1746426642732,-400.0,0.00036164,14]
[359922768,1746426642741,-400.0,0.00036164,14]
[359922769,1746426642751,-400.0,0.00036164,14]
[359922770,1746426642762,-400.0,0.00036164,14]
[359922771,1746426642772,-400.0,0.00036164,14]
[359922772,1746426642783,-400.0,0.00036164,14]
[359922773,1746426642793,-400.0,0.00036164,14]
[359922774,1746426642803,-400.0,0.00036164,14]
[359922775,1746426642812,-400.0,0.00036164,2]
[359922776,1746426642822,-400.0,0.00036164,14]
[359922777,1746426642831,-400.0,0.00036164,14]
[359922778,1746426642840,-400.0,0.00036164,14]
[359922779,1746426642849,-400.0,0.00036164,14]
[359922780,1746426642858,-400.0,0.00036164,14]
[359922781,1746426642868,-752.89,0.00036164,14]
[359922782,1746426642877,-400.0,0.00036164,14]
[359922783,1746426642887,-400.0,0.00036164,14]
[359922784,1746426642897,-400.0,0.00036164,14]
[359922785,1746426642906,-588.08,0.00036164,14]
[359922787,1746426642916,-400.0,0.00036164,14]
[359922789,1746426642927,-400.0,0.00036164,14]
[359922790,1746426642937,-400.0,0.00036164,14]
[359922791,1746426642947,-400.0,0.00036164,14]
[359922792,1746426642957,-400.0,0.00036164,14]
[359922793,1746426642966,-400.0,0.00036164,14]
[359922794,1746426642975,-400.0,0.00036164,14]
[359922795,1746426642986,-370.94,0.00036164,14]
[359922796,1746426642996,-402.02,0.00036164,14]
[359922797,1746426643006,-400.0,0.00036164,14]
[359922798,1746426643016,-322.49748045,0.00036191,14]
[359922800,1746426643026,-391.74,0.000362,7]
[359922801,1746426643037,-160.0,0.00036243,2]
[359922802,1746426643047,-160.0,0.00036243,2]
[359922803,1746426643057,-486.97804824,0.00036341,5]
[359922804,1746426643067,-500.0,0.00036341,5]
[359922809,1746426643181,-500.0,0.00036354,5]
[359922810,1746426643192,-500.0,0.00036354,2]
[359922811,1746426643202,-500.0,0.00036354,5]
[359922812,1746426643213,-500.0,0.00036354,5]
[359922813,1746426643223,-211.22623047,0.00036355,34]
[359922814,1746426643233,-298.5,0.00036438,14]
[359922815,1746426643243,-332.6,0.00036438,14]
[359922816,1746426643253,-488.49,0.00036438,14]
[359922818,1746426643263,-400.0,0.00036438,14]
[359922819,1746426643272,-400.0,0.00036438,14]
[359922820,1746426643282,-400.0,0.00036438,14]
[359922821,1746426643292,-250.36,0.00036438,14]
[359922822,1746426643301,-400.0,0.00036438,14]
[359922823,1746426643311,-400.0,0.00036438,14]
[359922824,1746426643322,-400.0,0.00036438,14]
[359922825,1746426643332,-400.0,0.00036438,14]
[359922826,1746426643342,-400.0,0.00036438,14]
[359922827,1746426643352,-454.05,0.00036438,14]
[359922828,1746426643363,-400.0,0.00036438,14]
[359922829,1746426643373,-400.0,0.00036438,14]
[359922830,1746426643383,-400.0,0.00036438,14]
[359922831,1746426643393,-400.0,0.00036438,14]
[359922832,1746426643402,-400.0,0.00036438,14]
[359922833,1746426643412,-400.0,0.00036438,14]
[359922834,1746426643421,-229.89,0.00036438,14]
[359922835,1746426643431,-400.0,0.00036438,14]
[359922836,1746426643440,-600.69,0.00036438,14]
[359922837,1746426643450,-400.0,0.00036438,14]
[359922838,1746426643459,-400.0,0.00036438,14]
[359922839,1746426643468,-879.3,0.00036438,14]
[359922840,1746426643477,-400.0,0.00036438,14]
[359922841,1746426643487,-400.0,0.00036438,14]
[359922842,1746426643496,-358.73,0.00036438,14]
[359922843,1746426643505,-400.0,0.00036438,14]
[359922844,1746426643515,-400.0,0.00036438,14]
[359922845,1746426643525,-400.0,0.00036438,14]
[359922846,1746426643535,-400.0,0.00036438,14]
[359922847,1746426643545,-463.92,0.00036438,14]
[359922848,1746426643554,-400.0,0.00036438,2]
[359922849,1746426643563,-400.0,0.00036438,14]
[359922850,1746426643573,-400.0,0.00036438,14]
[359922851,1746426643583,-400.0,0.00036438,14]
[359922852,1746426643593,-400.0,0.00036438,14]
[359922853,1746426643603,-752.89,0.00036438,14]
[359922854,1746426643612,-400.0,0.00036438,14]
[359922855,1746426643621,-400.0,0.00036438,14]
[359922856,1746426643631,-588.08,0.00036438,14]
[359922857,1746426643640,-400.0,0.00036438,14]
[359922858,1746426643649,-400.0,0.00036438,14]
[359922859,1746426643658,-400.0,0.00036438,14]
[359922860,1746426643667,-400.0,0.00036438,14]
[359922861,1746426643681,-400.0,0.00036438,14]
[359922862,1746426643690,-400.0,0.00036438,14]
[359922864,1746426643699,-400.0,0.00036438,14]
[359922866,1746426643708,-402.02,0.00036438,14]
[359922868,1746426643717,-400.0,0.00036438,14]
[359922870,1746426643727,-500.0,0.00036463,2]
[359922872,1746426643737,-500.0,0.00036463,5]
[359922874,1746426643746,-500.0,0.00036589,60]
[359922876,1746426643755,-488.49,0.00036712,14]
[359922878,1746426643765,-508.24695456,0.00036712,14]
[359922880,1746426643775,-400.0,0.00036712,14]
[359922881,1746426643783,-400.0,0.00036712,14]
[359922882,1746426643792,-400.0,0.00036712,14]
[359922883,1746426643802,-400.0,0.00036712,14]
[359922884,1746426643811,-400.0,0.00036712,14]
[359922885,1746426643821,-400.0,0.00036712,14]
[359922886,1746426643830,-400.0,0.00036712,14]
[359922887,1746426643839,-400.0,0.00036712,14]
[359922888,1746426643848,-400.0,0.00036712,14]
[359922889,1746426643859,-400.0,0.00036712,14]
[359922890,1746426643869,-400.0,0.00036712,14]
[359922891,1746426643879,-400.0,0.00036712,14]
[359922892,1746426643888,-400.0,0.00036712,14]
[359922893,1746426643898,-400.0,0.00036712,14]
[359922894,1746426643907,-600.69,0.00036712,14]
[359922895,1746426643917,-400.0,0.00036712,14]
[359922896,1746426643927,-400.0,0.00036712,14]
[359922897,1746426643937,-879.3,0.00036712,14]
[359922898,1746426643946,-400.0,0.00036712,14]
[359922899,1746426643956,-400.0,0.00036712,14]
[359922900,1746426643966,-400.0,0.00036712,14]
[359922901,1746426643975,-400.0,0.00036712,14]
[359922902,1746426643985,-400.0,0.00036712,2]
[359922903,1746426643994,-400.0,0.00036712,14]
[359922904,1746426644003,-359.86,0.00036712,14]
[359922905,1746426644014,-400.0,0.00036712,14]
[359922906,1746426644023,-400.0,0.00036712,14]
[359922907,1746426644032,-752.89,0.00036712,14]
[359922908,1746426644041,-400.0,0.00036712,14]
[359922909,1746426644051,-400.0,0.00036712,14]
[359922910,1746426644060,-588.08,0.00036712,14]
[359922911,1746426644069,-400.0,0.00036712,14]
[359922912,1746426644078,-400.0,0.00036712,14]
[359922913,1746426644088,-400.0,0.00036712,14]
[359922914,1746426644097,-400.0,0.00036712,14]
[359922915,1746426644106,-400.0,0.00036712,14]
[359922916,1746426644116,-400.0,0.00036712,14]
[359922917,1746426644125,-400.0,0.00036712,14]
[359922918,1746426644134,-402.02,0.00036712,14]
[359922919,1746426644145,-211.22623047,0.00036809,35]
[359922920,1746426644154,-257.99815393,0.00036976,3]
[359922921,1746426644164,-488.49,0.00036986,14]
[359922922,1746426644173,-544.96,0.00036986,14]
[359922923,1746426644183,-400.0,0.00036986,14]
[359922924,1746426644193,-400.0,0.00036986,14]
[359922925,1746426644203,-400.0,0.00036986,14]
[359922926,1746426644213,-400.0,0.00036986,14]
[359922927,1746426644223,-400.0,0.00036986,14]
[359922928,1746426644232,-400.0,0.00036986,14]
[359922929,1746426644243,-182.66,0.00036986,14]
[359922930,1746426644253,-400.0,0.00036986,14]
[359922931,1746426644263,-400.0,0.00036986,14]
[359922932,1746426644274,-400.0,0.00036986,14]
[359922933,1746426644286,-400.0,0.00036986,14]
[359922934,1746426644295,-400.0,0.00036986,14]
[359922935,1746426644305,-400.0,0.00036986,14]
[359922936,1746426644315,-600.69,0.00036986,14]
[359922937,1746426644324,-251.61,0.00036986,14]
[359922938,1746426644334,-400.0,0.00036986,14]
[359922939,1746426644343,-879.3,0.00036986,14]
[359922940,1746426644354,-400.0,0.00036986,14]
[359922941,1746426644364,-400.0,0.00036986,14]
[359922942,1746426644374,-400.0,0.00036986,14]
[359922943,1746426644385,-400.0,0.00036986,14]
[359922944,1746426644395,-400.0,0.00036986,2]
[359922945,1746426644404,-400.0,0.00036986,14]
[359922946,1746426644414,-400.0,0.00036986,14]
[359922947,1746426644424,-400.0,0.00036986,14]
[359922948,1746426644433,-752.89,0.00036986,14]
[359922949,1746426644443,-400.0,0.00036986,14]
[359922950,1746426644452,-400.0,0.00036986,14]
[359922951,1746426644461,-588.08,0.00036986,14]
[359922952,1746426644470,-400.0,0.00036986,14]
[359922953,1746426644479,-400.0,0.00036986,14]
[359922954,1746426644489,-192.45931205,0.00036986,14]
[359922955,1746426644498,-400.0,0.00036986,14]
[359922956,1746426644508,-400.0,0.00036986,14]
[359922957,1746426644517,-400.0,0.00036986,14]
[359922958,1746426644526,-400.0,0.00036986,14]
[359922959,1746426644536,-402.02,0.00036986,14]
[359922960,1746426644546,-1500.0,0.00036986,2]
[359922961,1746426644556,-500.0,0.00037137,60]
[359922962,1746426644565,-488.49,0.0003726,14]
[359922963,1746426644574,-404.23,0.0003726,14]
[359922964,1746426644583,-400.0,0.0003726,14]
[359922965,1746426644593,-400.0,0.0003726,14]
[359922966,1746426644603,-400.0,0.0003726,14]
[359922967,1746426644613,-432.34600142,0.0003726,14]
[359922968,1746426644623,-400.0,0.0003726,14]
[359922969,1746426644632,-400.0,0.0003726,14]
[359922970,1746426644642,-400.0,0.0003726,14]
[359922971,1746426644652,-400.0,0.0003726,14]
[359922972,1746426644661,-421.52,0.0003726,14]
[359922973,1746426644672,-400.0,0.0003726,14]
[359922974,1746426644683,-400.0,0.0003726,14]
[359922975,1746426644692,-600.69,0.0003726,14]
[359922976,1746426644701,-234.3833491,0.0003726,14]
[359922977,1746426644711,-879.3,0.0003726,14]
[359922978,1746426644720,-400.0,0.0003726,14]
[359922979,1746426644730,-231.52,0.0003726,14]
[359922980,1746426644740,-400.0,0.0003726,14]
[359922981,1746426644751,-400.0,0.0003726,14]
[359922982,1746426644761,-400.0,0.0003726,2]
[359922983,1746426644771,-400.0,0.0003726,14]
[359922984,1746426644780,-400.0,0.0003726,14]
[359922985,1746426644790,-400.0,0.0003726,14]
[359922986,1746426644800,-752.89,0.0003726,14]
[359922987,1746426644809,-400.0,0.0003726,14]
[359922988,1746426644819,-400.0,0.0003726,14]
[359922989,1746426644827,-588.08,0.0003726,14]
[359922990,1746426644837,-412.02,0.0003726,14]
[359922991,1746426644847,-400.0,0.0003726,14]
[359922992,1746426644856,-400.0,0.0003726,14]
[359922993,1746426644866,-400.0,0.0003726,14]
[359922994,1746426644875,-400.0,0.0003726,14]
[359922995,1746426644885,-400.0,0.0003726,14]
[359922996,1746426644895,-402.02,0.0003726,14]
[359922997,1746426644904,-211.22623047,0.00037264,36]
[359922998,1746426644913,-488.49,0.00037534,14]
[359922999,1746426644923,-400.0,0.00037534,14]
[359923000,1746426644933,-400.0,0.00037534,14]
[359923001,1746426644942,-400.0,0.00037534,14]
[359923002,1746426644952,-400.0,0.00037534,14]
[359923003,1746426644962,-400.0,0.00037534,14]
[359923004,1746426644971,-400.0,0.00037534,14]
[359923005,1746426644981,-400.0,0.00037534,14]
[359923006,1746426644991,-166.08374233,0.00037534,14]
[359923007,1746426645000,-400.0,0.00037534,14]
[359923008,1746426645010,-600.69,0.00037534,14]
[359923009,1746426645021,-879.3,0.00037534,14]
[359923010,1746426645031,-400.0,0.00037534,14]
[359923011,1746426645042,-400.0,0.00037534,14]
[359923012,1746426645052,-400.0,0.00037534,14]
[359923013,1746426645063,-400.0,0.00037534,2]
[359923014,1746426645074,-400.0,0.00037534,14]
[359923015,1746426645085,-400.0,0.00037534,14]
[359923016,1746426645094,-400.0,0.00037534,14]
[359923017,1746426645105,-752.89,0.00037534,14]
[359923018,1746426645115,-505.88,0.00037534,14]
[359923019,1746426645124,-400.0,0.00037534,14]
[359923020,1746426645134,-588.08,0.00037534,14]
[359923021,1746426645143,-400.0,0.00037534,14]
[359923022,1746426645153,-400.0,0.00037534,14]
[359923023,1746426645163,-464.84662511,0.00037534,14]
[359923024,1746426645172,-400.0,0.00037534,14]
[359923025,1746426645182,-400.0,0.00037534,14]
[359923026,1746426645191,-402.02,0.00037534,14]
[359923027,1746426645201,-500.0,0.00037685,60]
[359923028,1746426645211,-211.22623047,0.00037718,37]
[359923029,1746426645220,-257.99815393,0.00037798,3]
[359923030,1746426645230,-488.49,0.00037808,14]
[359923031,1746426645240,-482.51251003,0.00037808,14]
[359923032,1746426645250,-400.0,0.00037808,14]
[359923033,1746426645259,-539.07,0.00037808,14]
[359923034,1746426645269,-400.0,0.00037808,14]
[359923035,1746426645278,-515.78,0.00037808,14]
[359923036,1746426645288,-400.0,0.00037808,14]
[359923037,1746426645299,-400.0,0.00037808,14]
[359923038,1746426645308,-600.69,0.00037808,14]
[359923039,1746426645318,-879.3,0.00037808,14]
[359923040,1746426645328,-400.0,0.00037808,14]
[359923041,1746426645338,-400.0,0.00037808,14]
[359923042,1746426645348,-400.0,0.00037808,2]
[359923043,1746426645357,-400.0,0.00037808,14]
[359923044,1746426645367,-400.0,0.00037808,14]
[359923045,1746426645376,-400.0,0.00037808,14]
[359923046,1746426645386,-752.89,0.00037808,14]
[359923047,1746426645395,-400.0,0.00037808,14]
[359923048,1746426645405,-588.08,0.00037808,14]
[359923049,1746426645413,-400.0,0.00037808,14]
[359923050,1746426645422,-400.0,0.00037808,14]
[359923051,1746426645432,-400.0,0.00037808,14]
[359923052,1746426645442,-400.0,0.00037808,14]
[359923053,1746426645451,-402.02,0.00037808,14]
[359923054,1746426645460,-3090.92,0.000379,30]
[359923055,1746426645469,-488.49,0.00038082,14]
[359923056,1746426645479,-400.0,0.00038082,14]
[359923057,1746426645489,-400.0,0.00038082,14]
[359923058,1746426645499,-400.0,0.00038082,14]
[359923059,1746426645508,-400.0,0.00038082,14]
[359923060,1746426645518,-600.69,0.00038082,14]
[359923061,1746426645528,-879.3,0.00038082,14]
[359923062,1746426645538,-400.0,0.00038082,14]
[359923063,1746426645547,-400.0,0.00038082,14]
[359923064,1746426645557,-400.0,0.00038082,2]
[359923065,1746426645566,-400.0,0.00038082,14]
[359923066,1746426645576,-400.0,0.00038082,14]
[359923067,1746426645585,-400.0,0.00038082,14]
[359923068,1746426645594,-752.89,0.00038082,14]
[359923069,1746426645603,-400.0,0.00038082,14]
[359923070,1746426645613,-588.08,0.00038082,14]
[359923071,1746426645623,-400.0,0.00038082,14]
[359923072,1746426645632,-400.0,0.00038082,14]
[359923073,1746426645642,-400.0,0.00038082,14]
[359923074,1746426645651,-400.0,0.00038082,14]
[359923075,1746426645660,-402.02,0.00038082,14]
[359923076,1746426645669,-2000.0,0.00038082,2]
[359923077,1746426645683,-560.0,0.00038163,2]
[359923078,1746426645692,-211.22623047,0.00038173,38]
[359923079,1746426645701,-500.0,0.00038233,60]
[359923080,1746426645710,-377.8784881,0.0003826,4]
[359923081,1746426645721,-488.49,0.00038356,14]
[359923082,1746426645731,-400.0,0.00038356,14]
[359923083,1746426645740,-400.0,0.00038356,14]
[359923084,1746426645749,-400.0,0.00038356,14]
[359923085,1746426645760,-600.69,0.00038356,14]
[359923086,1746426645770,-879.3,0.00038356,14]
[359923087,1746426645780,-435.9636469,0.00038356,14]
[359923088,1746426645791,-227.52,0.00038356,14]
[359923089,1746426645800,-400.0,0.00038356,2]
[359923090,1746426645810,-400.0,0.00038356,14]
[359923091,1746426645819,-400.0,0.00038356,14]
[359923092,1746426645829,-400.0,0.00038356,14]
[359923093,1746426645839,-752.89,0.00038356,14]
[359923094,1746426645848,-400.0,0.00038356,14]
[359923095,1746426645858,-588.08,0.00038356,14]
[359923096,1746426645868,-400.0,0.00038356,14]
[359923098,1746426645878,-400.0,0.00038356,14]
[359923100,1746426645887,-400.0,0.00038356,14]
[359923102,1746426645897,-400.0,0.00038356,14]
[359923103,1746426645906,-402.02,0.00038356,14]
[359923104,1746426645916,-551.2,0.000384,30]
[359923105,1746426646026,-211.22623047,0.00038627,39]
[359923106,1746426646037,-488.49,0.0003863,14]
[359923107,1746426646046,-400.0,0.0003863,14]
[359923108,1746426646057,-400.0,0.0003863,14]
[359923109,1746426646067,-400.0,0.0003863,14]
[359923110,1746426646078,-600.69,0.0003863,14]
[359923111,1746426646088,-879.3,0.0003863,14]
[359923112,1746426646098,-400.0,0.0003863,2]
[359923113,1746426646108,-400.0,0.0003863,14]
[359923114,1746426646118,-469.92,0.0003863,14]
[359923115,1746426646127,-400.0,0.0003863,14]
[359923116,1746426646136,-752.89,0.0003863,14]
[359923117,1746426646145,-400.0,0.0003863,14]
[359923118,1746426646155,-588.08,0.0003863,14]
[359923119,1746426646164,-400.0,0.0003863,14]
[359923120,1746426646173,-400.0,0.0003863,14]
[359923121,1746426646182,-400.0,0.0003863,14]
[359923122,1746426646191,-400.0,0.0003863,14]
[359923123,1746426646200,-402.02,0.0003863,14]
[359923124,1746426646209,-500.0,0.0003878,2]
[359923125,1746426646218,-488.49,0.00038904,14]
[359923126,1746426646228,-400.0,0.00038904,14]
[359923127,1746426646237,-260.36,0.00038904,14]
[359923128,1746426646246,-400.0,0.00038904,14]
[359923129,1746426646255,-600.69,0.00038904,14]
[359923130,1746426646265,-879.3,0.00038904,14]
[359923131,1746426646274,-400.0,0.00038904,2]
[359923132,1746426646283,-400.0,0.00038904,14]
[359923133,1746426646292,-400.0,0.00038904,14]
[359923134,1746426646301,-752.89,0.00038904,14]
[359923135,1746426646310,-273.04487037,0.00038904,14]
[359923136,1746426646319,-588.08,0.00038904,14]
[359923137,1746426646328,-400.0,0.00038904,14]
[359923138,1746426646337,-400.0,0.00038904,14]
[359923139,1746426646347,-400.0,0.00038904,14]
[359923140,1746426646356,-400.0,0.00038904,14]
[359923141,1746426646366,-402.02,0.00038904,14]
[359923142,1746426646375,-232.396919,0.00038933,2]
[359923143,1746426646386,-391.74,0.00039,7]
[359923144,1746426646396,-211.22623047,0.00039082,40]
[359923145,1746426646405,-257.99815393,0.00039168,3]
[359923146,1746426646414,-488.49,0.00039178,14]
[359923147,1746426646424,-400.0,0.00039178,14]
[359923148,1746426646434,-168.24,0.00039178,14]
[359923149,1746426646445,-600.69,0.00039178,14]
[359923150,1746426646455,-879.3,0.00039178,14]
[359923151,1746426646465,-400.0,0.00039178,2]
[359923152,1746426646475,-400.0,0.00039178,14]
[359923153,1746426646485,-400.0,0.00039178,14]
[359923154,1746426646495,-752.89,0.00039178,14]
[359923155,1746426646504,-588.08,0.00039178,14]
[359923156,1746426646514,-400.0,0.00039178,14]
[359923157,1746426646523,-400.0,0.00039178,14]
[359923158,1746426646533,-400.0,0.00039178,14]
[359923159,1746426646542,-400.0,0.00039178,14]
[359923160,1746426646552,-402.02,0.00039178,14]
[359923161,1746426646561,-2500.0,0.00039178,2]
[359923162,1746426646571,-500.0,0.00039329,60]
[359923163,1746426646580,-545.0,0.00039347,2]
[359923164,1746426646590,-403.0,0.00039347,2]
[359923165,1746426646599,-2243.0,0.00039347,2]
[359923166,1746426646611,-488.49,0.00039452,14]
[359923167,1746426646621,-400.0,0.00039452,14]
[359923168,1746426646631,-600.69,0.00039452,14]
[359923169,1746426646641,-879.3,0.00039452,14]
[359923170,1746426646651,-400.0,0.00039452,2]
[359923171,1746426646660,-400.0,0.00039452,14]
[359923172,1746426646670,-400.0,0.00039452,14]
[359923173,1746426646682,-752.89,0.00039452,14]
[359923174,1746426646692,-588.08,0.00039452,14]
[359923175,1746426646701,-336.7552525,0.00039452,14]
[359923176,1746426646817,-63.2447475,0.00039452,14]
[359923177,1746426646827,-400.0,0.00039452,14]
[359923178,1746426646838,-400.0,0.00039452,14]
[359923179,1746426646848,-400.0,0.00039452,14]
[359923180,1746426646857,-402.02,0.00039452,14]
[359923181,1746426646867,-3090.92,0.000395,30]
[359923182,1746426646877,-211.22623047,0.00039536,40]
[359923183,1746426646886,-488.49,0.00039726,14]
[359923184,1746426646896,-400.0,0.00039726,14]
[359923185,1746426646905,-600.69,0.00039726,14]
[359923186,1746426646915,-879.3,0.00039726,14]
[359923187,1746426646926,-400.0,0.00039726,2]
[359923188,1746426646936,-400.0,0.00039726,14]
[359923189,1746426646946,-390.74,0.00039726,14]
[359923190,1746426646956,-752.89,0.00039726,14]
[359923191,1746426646965,-588.08,0.00039726,14]
[359923192,1746426646975,-400.0,0.00039726,14]
[359923193,1746426646985,-400.0,0.00039726,14]
[359923194,1746426646995,-400.0,0.00039726,14]
[359923195,1746426647005,-400.0,0.00039726,14]
[359923196,1746426647014,-402.02,0.00039726,14]
[359923197,1746426647024,-211.22623047,0.00039991,41]
[359923198,1746426647034,-488.49,0.0004,14]
[359923199,1746426647043,-400.0,0.0004,14]
[359923200,1746426647053,-600.69,0.0004,14]